bitfinex-derivatives/quotes_BTCF0:USTF0_20250320
["timestamp","ask_amount","ask_price","bid_price","bid_amount"]
[1742506497414,0.31785634,84540.0,84539.0,0.007]
[1742506497619,0.31685634,84540.0,84539.0,0.002]
[1742506499421,0.19630266,84540.0,84539.0,0.002]
[1742506502521,0.1844439,84540.0,84539.0,0.002]
[1742506503614,0.19644726,84540.0,84539.0,0.002]
[1742506509623,0.31544222,84540.0,84539.0,0.002]
[1742506523039,0.42792222,84540.0,84539.0,0.002]
[1742506533944,0.1183509,84535.0,84534.0,0.0521]
[1742506534248,0.2308309,84535.0,84534.0,0.0521]
[1742506534449,0.3240309,84535.0,84534.0,0.0521]
[1742506534647,0.3240309,84535.0,84534.0,0.0311]
[1742506535058,0.3250309,84535.0,84534.0,0.0391]
[1742506535864,0.3250309,84535.0,84534.0,0.0601]
[1742506536359,0.44402586,84535.0,84534.0,0.0601]
[1742506537351,0.41212586,84535.0,84534.0,0.0601]
[1742506538660,0.41212586,84535.0,84534.0,0.1784523]
[1742506540461,0.41212586,84535.0,84534.0,0.0601]
[1742506540964,0.41212586,84535.0,84534.0,0.0391]
[1742506542160,0.41212586,84535.0,84534.0,0.008]
[1742506543060,0.2931309,84535.0,84534.0,0.008]
[1742506547876,0.6539309,84535.0,84534.0,0.008]
[1742506550175,0.6539309,84535.0,84522.0,0.01220966]
[1742506550176,0.1183677,84523.0,84522.0,0.01220966]
[1742506550373,0.2308477,84523.0,84522.0,0.01220966]
[1742506550572,0.3257477,84523.0,84522.0,0.01220966]
[1742506550883,0.3257477,84523.0,84522.0,0.0301]
[1742506551179,0.33787391,84523.0,84522.0,0.0301]
[1742506551568,0.1183719,84520.0,84518.0,0.021]
[1742506551767,0.1183719,84520.0,84519.0,0.3608]
[1742506551967,0.1804719,84520.0,84519.0,0.3608]
[1742506552183,0.1804719,84520.0,84519.0,0.3925]
[1742506552771,0.1814719,84520.0,84519.0,0.3925]
[1742506553578,0.1824719,84520.0,84519.0,0.3945]
[1742506554784,0.3950319,84520.0,84519.0,0.3945]
[1742506556288,0.3950319,84520.0,84519.0,0.3628]
[1742506556973,0.3940319,84520.0,84519.0,0.3608]
[1742506557172,0.3940319,84520.0,84519.0,0.3648]
[1742506557987,0.3930319,84520.0,84519.0,0.3648]
[1742506558174,0.3940319,84520.0,84519.0,0.3648]
[1742506560478,0.3940319,84520.0,84519.0,0.004]
[1742506560680,0.1183733,84519.0,84517.0,4e-05]
[1742506560983,0.1183789,84515.0,84514.0,0.00021737]
[1742506561178,0.2308589,84515.0,84514.0,0.00021737]
[1742506561386,0.3270589,84515.0,84514.0,0.00021737]
[1742506561681,0.3270589,84515.0,84514.0,0.00017737]
[1742506562585,0.3280589,84515.0,84514.0,0.00017737]
[1742506563487,0.3280589,84515.0,84514.0,0.00117737]
[1742506565983,0.5406189,84515.0,84514.0,0.00117737]
[1742506567877,0.1183915,84506.0,84502.0,4e-05]
[1742506568080,0.2308715,84506.0,84502.0,4e-05]
[1742506568494,0.2919715,84506.0,84502.0,4e-05]
[1742506568676,0.1183971,84502.0,84501.0,0.0522]
[1742506569094,0.1794971,84502.0,84501.0,0.05224]
[1742506572882,0.1794971,84502.0,84501.0,0.0522]
[1742506573078,0.1184056,84496.0,84495.0,0.2368125]
[1742506573290,0.118407,84495.0,84494.0,0.18231935]
[1742506573494,0.149407,84495.0,84494.0,0.18231935]
[1742506574288,0.179607,84495.0,84494.0,0.21511935]
[1742506577395,0.179607,84495.0,84494.0,0.2034084]
[1742506578497,0.179607,84495.0,84494.0,0.2037683]
[1742506579396,0.179607,84495.0,84494.0,0.0003599]
[1742506582993,0.1184084,84494.0,84493.0,0.00017747]
[1742506583197,0.1510084,84494.0,84493.0,0.00017747]
[1742506583400,0.2128084,84494.0,84493.0,0.00053737]
[1742506586305,0.22470858,84494.0,84493.0,0.00053737]
[1742506587605,0.2128084,84494.0,84493.0,0.00053737]
[1742506588306,0.4253684,84494.0,84493.0,0.00053737]
[1742506593810,0.1184168,84488.0,84487.0,0.1516177]
[1742506594114,0.5917368,84488.0,84487.0,0.1516177]
[1742506594306,0.6227368,84488.0,84487.0,0.1516177]
[1742506594507,0.6227368,84488.0,84487.0,0.1726177]
[1742506594909,0.6550368,84488.0,84487.0,0.2047177]
[1742506595110,0.6560368,84488.0,84487.0,0.2047177]
[1742506596103,0.6872368,84488.0,84487.0,0.2047177]
[1742506597212,0.86389771,84488.0,84487.0,0.1715177]
[1742506597718,0.86389771,84488.0,84487.0,0.1184177]
[1742506597919,0.86389771,84488.0,84487.0,0.1508177]
[1742506598706,0.86389771,84488.0,84487.0,0.1718177]
[1742506599807,0.6872368,84488.0,84487.0,0.1718177]
[1742506604515,0.6872368,84488.0,84487.0,0.1508177]
[1742506606217,0.6872368,84488.0,84487.0,0.1184177]
[1742506607321,0.8997968,84488.0,84487.0,0.1184177]
[1742506607920,0.8997968,84488.0,84486.0,0.0592094]
[1742506608116,0.8997968,84488.0,84487.0,0.1184177]
[1742506609122,0.8997968,84488.0,84487.0,0.1484177]
[1742506609310,0.6872368,84488.0,84487.0,0.1484177]
[1742506609809,0.6872368,84488.0,84487.0,0.1184177]
[1742506610211,0.6872368,84488.0,84487.0,0.1484177]
[1742506610607,0.6872368,84488.0,84487.0,0.03]
[1742506611722,0.6872368,84488.0,84487.0,0.1484182]
[1742506612819,0.6872368,84488.0,84487.0,0.03]
[1742506613024,0.6872368,84488.0,84487.0,0.1484182]
[1742506613521,0.6872368,84488.0,84487.0,0.03]
[1742506614828,0.6872368,84488.0,84487.0,0.1484182]
[1742506615723,0.6872368,84488.0,84487.0,0.03]
[1742506616026,0.118421,84485.0,84484.0,0.1184219]
[1742506616527,0.181921,84485.0,84484.0,0.1184219]
[1742506617227,0.182921,84485.0,84484.0,0.1184219]
[1742506621429,0.1184224,84484.0,84483.0,4e-05]
[1742506621629,0.1827224,84484.0,84483.0,0.1184638]
[1742506622022,0.1827224,84484.0,84483.0,0.1490638]
[1742506622737,0.39521802,84484.0,84483.0,0.1490638]
[1742506622940,0.39621802,84484.0,84483.0,0.1490638]
[1742506624222,0.39621802,84484.0,84483.0,4e-05]
[1742506624426,0.39621802,84484.0,84483.0,0.1184638]
[1742506625133,0.39621802,84484.0,84483.0,0.1497638]
[1742506625431,0.21349562,84484.0,84483.0,0.5105638]
[1742506625728,0.21349562,84484.0,84483.0,0.5625638]
[1742506629931,0.00017747,84493.0,84492.0,0.1184112]
[1742506630133,0.00017747,84493.0,84492.0,0.5653112]
[1742506632633,0.00017747,84493.0,84492.0,0.5663112]
[1742506634035,0.21227627,84498.0,84497.0,0.1184042]
[1742506634238,0.21227627,84498.0,84497.0,0.2308842]
[1742506634443,0.21227627,84498.0,84497.0,0.2824842]
[1742506634842,0.0318,84499.0,84498.0,0.1184028]
[1742506635043,0.0318,84499.0,84498.0,0.1700028]
[1742506636543,0.0318,84499.0,84498.0,0.1710028]
[1742506637141,0.0635,84499.0,84498.0,0.1710028]
[1742506648962,0.05937277,84507.0,84498.0,0.1710028]
[1742506648963,0.00017747,84507.0,84506.0,0.1183915]
[1742506649455,0.00017747,84507.0,84506.0,0.1818915]
[1742506650860,0.00117747,84507.0,84506.0,0.1818915]
[1742506651060,0.00117747,84507.0,84506.0,0.2149915]
[1742506651563,0.00117747,84507.0,84506.0,0.4749915]
[1742506651758,0.03192,84512.0,84509.0,0.1183873]
[1742506652154,0.063,84511.0,84509.0,0.1819873]
[1742506652555,0.4238,84510.0,84509.0,0.1819873]
[1742506652863,0.4258,84510.0,84509.0,0.1819873]
[1742506653059,0.065,84510.0,84509.0,0.1819873]
[1742506653865,0.067,84510.0,84509.0,0.19406297]
[1742506654561,4e-05,84515.0,84511.0,0.0591922]
[1742506654858,0.1183649,84526.0,84517.0,0.1183761]
[1742506655059,0.36084,84527.0,84526.0,0.1183635]
[1742506655469,0.36084,84527.0,84526.0,0.1823635]
[1742506655784,4e-05,84529.0,84528.0,0.1183607]
[1742506655970,4e-05,84529.0,84528.0,0.3783607]
[1742506656166,4e-05,84529.0,84528.0,0.4423607]
[1742506656373,4e-05,84529.0,84528.0,0.45109343]
[1742506656763,4e-05,84529.0,84528.0,0.4423607]
[1742506657482,0.00404,84529.0,84528.0,0.4423607]
[1742506657976,0.00404,84529.0,84528.0,0.45407776]
[1742506658177,0.06794,84529.0,84528.0,0.45407776]
[1742506658374,0.07194,84529.0,84528.0,0.45407776]
[1742506658770,0.0719,84529.0,84528.0,0.45407776]
[1742506659173,0.0719,84529.0,84528.0,0.19407776]
[1742506661073,0.0719,84529.0,84528.0,0.20311507]
[1742506664586,0.0402,84529.0,84528.0,0.20311507]
[1742506664985,0.008,84529.0,84528.0,0.20311507]
[1742506665188,4e-05,84532.0,84528.0,0.20311507]
[1742506665189,4e-05,84532.0,84531.0,0.1183565]
[1742506665389,4e-05,84532.0,84531.0,0.2307565]
[1742506665589,4e-05,84532.0,84531.0,0.2918565]
[1742506666995,4e-05,84532.0,84531.0,0.2928565]
[1742506667294,4e-05,84532.0,84531.0,0.2938565]
[1742506673597,4e-05,84535.0,84534.0,0.1183523]
[1742506673803,0.06444,84535.0,84534.0,0.1183523]
[1742506673994,0.06444,84535.0,84534.0,0.2142523]
[1742506674697,0.0644,84535.0,84534.0,0.4942523]
[1742506681101,0.00021747,84537.0,84536.0,0.1183495]
[1742506681407,0.00021747,84537.0,84536.0,0.3983495]
[1742506681607,0.00021747,84537.0,84536.0,0.4612495]
[1742506681808,0.00017747,84537.0,84536.0,0.4612495]
[1742506682307,0.00117747,84537.0,84536.0,0.4612495]
[1742506684300,0.03337747,84537.0,84536.0,0.4612495]
[1742506685712,0.03337747,84537.0,84536.0,0.8220495]
[1742506685909,0.00217747,84537.0,84536.0,0.8220495]
[1742506688206,0.03447747,84537.0,84536.0,0.8220495]
[1742506691214,0.03447747,84537.0,84536.0,0.9344095]
[1742506694311,0.03447747,84537.0,84536.0,1.14758046]
[1742506696205,0.03024,84542.0,84538.0,0.0591728]
[1742506696408,4e-05,84542.0,84541.0,0.1183425]
[1742506696608,4e-05,84542.0,84541.0,0.2137425]
[1742506698116,0.0309,84547.0,84544.0,0.1183383]
[1742506698514,0.0309,84547.0,84544.0,0.2942983]
[1742506699517,0.1501368,84546.0,84544.0,0.17596]
[1742506699721,0.00204,84545.0,84544.0,0.14426]
[1742506699921,0.06474,84545.0,84544.0,0.14426]
[1742506700822,0.06474,84545.0,84544.0,0.17756]
[1742506701025,0.06774,84545.0,84544.0,0.17756]
[1742506702012,0.06774,84545.0,84544.0,0.2958983]
[1742506703120,0.06774,84545.0,84544.0,0.17756]
[1742506703314,0.1860769,84545.0,84544.0,0.11236]
[1742506703718,0.1860769,84545.0,84542.0,0.2698817]
[1742506704032,0.1510396,84544.0,84543.0,0.11236]
[1742506704213,0.0918692,84544.0,84538.0,0.0306]
[1742506704525,0.1183467,84538.0,84537.0,0.32511601]
[1742506704923,0.1807467,84538.0,84537.0,0.32511601]
[1742506706020,0.1807467,84538.0,84537.0,0.11236]
[1742506706525,0.1817467,84538.0,84537.0,0.11236]
[1742506706920,0.1817467,84538.0,84537.0,0.01216932]
[1742506707118,0.1183481,84537.0,84536.0,0.11236]
[1742506707519,0.1823481,84537.0,84536.0,0.11236]
[1742506707918,0.1823481,84537.0,84536.0,0.14296]
[1742506708927,0.1833481,84537.0,84536.0,0.0306]
[1742506709126,0.1183537,84533.0,84532.0,0.4791551]
[1742506709322,0.1183537,84533.0,84532.0,0.5915151]
[1742506709613,0.1822537,84533.0,84532.0,0.6033459]
[1742506709814,0.1822537,84533.0,84532.0,0.6350459]
[1742506710319,0.1822537,84533.0,84532.0,0.6360459]
[1742506711427,0.1822537,84533.0,84532.0,0.6684459]
[1742506712125,0.1822537,84533.0,84532.0,0.3736308]
[1742506713033,0.1822537,84533.0,84532.0,0.0128308]
[1742506713323,0.5430537,84533.0,84532.0,0.0128308]
[1742506713532,0.5430537,84533.0,84532.0,0.001]
[1742506717327,0.5430537,84533.0,84525.0,0.0311]
[1742506717328,0.1183635,84526.0,84525.0,0.0311]
[1742506717627,0.1183649,84525.0,84524.0,4e-05]
[1742506717830,0.1183649,84525.0,84520.0,0.00017747]
[1742506717831,0.1183705,84521.0,84520.0,0.00017747]
[1742506718334,0.1815705,84521.0,84520.0,0.00017747]
[1742506719045,0.1815705,84521.0,84520.0,0.11854937]
[1742506719719,0.1815705,84521.0,84520.0,0.00017747]
[1742506719924,0.2939305,84521.0,84520.0,0.00017747]
[1742506720126,0.2939305,84521.0,84520.0,0.00317747]
[1742506721437,0.2939305,84521.0,84520.0,0.00717747]
[1742506725931,0.30260379,84521.0,84520.0,0.00717747]
[1742506731237,0.30260379,84521.0,84520.0,0.04007747]
[1742506736942,0.0591898,84515.0,84512.0,4e-05]
[1742506737241,0.4791817,84513.0,84512.0,4e-05]
[1742506737641,0.5406817,84513.0,84512.0,4e-05]
[1742506738149,0.5406817,84513.0,84512.0,0.01104]
[1742506738451,0.5526672,84513.0,84512.0,0.01104]
[1742506739742,0.5526672,84513.0,84512.0,0.011]
[1742506739940,0.5526672,84513.0,84512.0,0.005]
[1742506740147,0.5536672,84513.0,84512.0,0.009]
[1742506740543,0.0591915,84512.0,84500.0,4e-05]
[1742506740743,0.0591915,84512.0,84497.0,4e-05]
[1742506740744,0.1184028,84498.0,84497.0,0.03192]
[1742506740947,0.1184238,84483.0,84482.0,0.27200811]
[1742506741352,0.1184238,84483.0,84482.0,0.0592521]
[1742506742245,0.1184238,84483.0,84482.0,4e-05]
[1742506742438,0.1184238,84483.0,84482.0,0.01195374]
[1742506742645,0.1184238,84483.0,84482.0,4e-05]
[1742506742942,0.1776392,84482.0,84481.0,0.1184258]
[1742506743149,0.1776392,84482.0,84480.0,0.27196861]
[1742506743343,0.1184266,84481.0,84480.0,0.21275601]
[1742506743543,0.1184266,84481.0,84480.0,0.33118401]
[1742506743742,0.1493266,84481.0,84480.0,0.39228401]
[1742506744946,0.1503266,84481.0,84480.0,0.39228401]
[1742506745138,0.1513266,84481.0,84480.0,0.27385601]
[1742506745552,0.1513266,84481.0,84480.0,0.39228401]
[1742506745946,0.1513266,84481.0,84480.0,0.0611]
[1742506746152,0.1513266,84481.0,84480.0,0.0933]
[1742506746851,0.1513266,84481.0,84480.0,0.211728]
[1742506755561,0.1833266,84481.0,84480.0,0.211728]
[1742506756061,0.002,84481.0,84480.0,0.211728]
[1742506775470,0.002,84481.0,84480.0,0.42448401]
[1742506776070,0.0322,84489.0,84488.0,0.1184168]
[1742506776271,0.0322,84489.0,84488.0,0.5916168]
[1742506776462,0.0322,84489.0,84488.0,0.6543168]
[1742506777376,0.0332,84489.0,84488.0,0.6543168]
[1742506777973,0.0342,84489.0,84488.0,0.6553168]
[1742506778171,0.0342,84489.0,84488.0,0.001]
[1742506778371,0.1526154,84489.0,84488.0,0.001]
[1742506779167,0.1826154,84489.0,84488.0,0.001]
[1742506780382,0.5434154,84489.0,84488.0,0.001]
[1742506784984,0.6558554,84489.0,84488.0,0.001]
[1742506787989,0.76659089,84489.0,84488.0,0.001]
[1742506788487,0.1184168,84488.0,84487.0,4e-05]
[1742506788677,0.1184168,84488.0,84481.0,4e-05]
[1742506788678,0.1184252,84482.0,84481.0,4e-05]
[1742506788876,0.1184322,84477.0,84476.0,4e-05]
[1742506789579,0.1831322,84477.0,84476.0,4e-05]
[1742506789780,0.118435,84475.0,84473.0,0.1184375]
[1742506790183,0.183135,84475.0,84472.0,0.06324]
[1742506790589,0.19502433,84475.0,84472.0,0.06324]
[1742506791694,0.19602433,84475.0,84472.0,0.06324]
[1742506792390,0.19702433,84475.0,84474.0,0.00117747]
[1742506792992,0.185135,84475.0,84474.0,0.00117747]
[1742506793379,0.185135,84475.0,84474.0,0.18441387]
[1742506793584,0.185135,84475.0,84474.0,0.06597747]
[1742506794479,0.185135,84475.0,84474.0,0.18441387]
[1742506795595,0.185135,84475.0,84474.0,0.03277747]
[1742506796295,0.185135,84475.0,84474.0,0.15121387]
[1742506798994,0.185135,84475.0,84474.0,0.00117747]
[1742506799794,0.545935,84475.0,84474.0,0.00117747]
[1742506800192,0.0592208,84471.0,84467.0,4e-05]
[1742506800394,0.1184518,84463.0,84461.0,0.00084]
[1742506800585,0.1184588,84458.0,84457.0,0.21279601]
[1742506800791,0.1184743,84447.0,84446.0,0.35528494]
[1742506801390,0.1489743,84447.0,84446.0,0.35528494]
[1742506803093,0.1489743,84447.0,84446.0,0.47376064]
[1742506803287,0.1489743,84447.0,84446.0,0.35528494]
[1742506803604,0.1499743,84447.0,84446.0,0.35528494]
[1742506803794,0.0907371,84447.0,84444.0,4e-05]
[1742506804102,0.1184771,84445.0,84444.0,4e-05]
[1742506804294,0.1777233,84442.0,84441.0,0.1184827]
[1742506804890,0.059242,84440.0,84438.0,0.00017759]
[1742506805094,0.2643255,84439.0,84438.0,0.00017759]
[1742506805299,0.1184869,84438.0,84437.0,4e-05]
[1742506805500,0.0592445,84437.0,84433.0,0.1490934]
[1742506805698,0.1184925,84434.0,84433.0,0.1490934]
[1742506806394,0.1512925,84434.0,84433.0,0.1490934]
[1742506807405,0.1512925,84434.0,84433.0,0.1795934]
[1742506808106,0.1522925,84434.0,84433.0,0.1795934]
[1742506808904,0.1532925,84434.0,84433.0,0.1795934]
[1742506810602,0.002,84434.0,84433.0,0.1795934]
[1742506810792,0.002,84434.0,84433.0,0.2120934]
[1742506811395,0.002,84434.0,84433.0,0.4920934]
[1742506811800,0.002,84434.0,84433.0,0.6058934]
[1742506840425,0.10551824,84437.0,84436.0,0.1184897]
[1742506840624,0.10551824,84437.0,84436.0,0.7592897]
[1742506840819,0.0654,84441.0,84440.0,0.1184841]
[1742506841019,0.0654,84441.0,84440.0,0.5117641]
[1742506841220,0.0654,84441.0,84440.0,0.5417641]
[1742506841625,0.10028929,84442.0,84441.0,0.1184827]
[1742506841815,0.10028929,84442.0,84441.0,0.7492827]
[1742506843113,0.21266824,84455.0,84454.0,0.1184644]
[1742506843317,0.21266824,84455.0,84454.0,0.8725444]
[1742506843827,0.21266824,84455.0,84454.0,0.9045444]
[1742506844126,0.0303,84469.0,84468.0,0.1184448]
[1742506845016,0.0303,84469.0,84468.0,0.13006906]
[1742506845419,0.0303,84469.0,84468.0,0.16206906]
[1742506845619,0.00017759,84477.0,84476.0,0.1184336]
[1742506845819,0.00017759,84477.0,84476.0,0.4792336]
[1742506845820,0.00021759,84477.0,84476.0,0.4792336]
[1742506846020,0.00021759,84477.0,84476.0,0.5112336]
[1742506846723,0.06547759,84477.0,84476.0,0.5112336]
[1742506847423,0.06547759,84477.0,84476.0,0.7612336]
[1742506847624,0.00017759,84477.0,84476.0,0.7929336]
[1742506848123,9e-08,84477.0,84476.0,0.7949336]
[1742506853123,9e-08,84481.0,84480.0,0.118428]
[1742506853335,4e-05,84487.0,84486.0,0.1184196]
[1742506853530,4e-05,84487.0,84486.0,0.8324996]
[1742506853727,0.0625,84489.0,84488.0,0.1184168]
[1742506853932,0.0625,84489.0,84488.0,0.3484168]
[1742506854325,0.0625,84489.0,84488.0,0.3801168]
[1742506855126,0.0655,84489.0,84488.0,0.3801168]
[1742506855425,0.0685,84489.0,84488.0,0.3801168]
[1742506856341,0.006,84489.0,84488.0,0.3801168]
[1742506857530,0.004,84489.0,84488.0,0.3831168]
[1742506857932,0.001,84489.0,84488.0,0.3831168]
[1742506858133,0.00236,84489.0,84488.0,0.3861168]
[1742506858532,0.00236,84489.0,84488.0,0.3864368]
[1742506861345,0.00236,84489.0,84488.0,0.4165368]
[1742506862638,0.002,84489.0,84488.0,0.4165368]
[1742506862844,0.002,84489.0,84488.0,0.4162168]
[1742506863239,0.00236,84489.0,84488.0,0.4162168]
[1742506863443,0.00236,84489.0,84488.0,0.4165368]
[1742506865346,0.00236,84489.0,84488.0,0.5297768]
[1742506866748,0.00136,84489.0,84488.0,0.5327768]
[1742506867548,0.00136,84489.0,84488.0,0.3027368]
[1742506867745,0.031,84493.0,84492.0,0.1184112]
[1742506867936,0.031,84493.0,84492.0,0.2316112]
[1742506868755,0.03136,84493.0,84492.0,0.2316112]
[1742506869253,0.03136,84493.0,84492.0,0.2339312]
[1742506870051,0.03136,84493.0,84492.0,0.2369312]
[1742506870849,0.03136,84493.0,84492.0,0.2349312]
[1742506871053,0.03136,84493.0,84492.0,0.2369312]
[1742506872638,0.031,84493.0,84492.0,0.2369312]
[1742506872841,0.031,84493.0,84492.0,0.2366112]
[1742506873250,0.03136,84493.0,84492.0,0.2366112]
[1742506873553,0.03136,84493.0,84492.0,0.2369312]
[1742506874355,0.03136,84493.0,84492.0,0.2682312]
[1742506874944,0.03136,84493.0,84492.0,0.27996819]
[1742506877548,0.03136,84493.0,84492.0,0.2369312]
[1742506877752,0.031,84493.0,84492.0,0.2369312]
[1742506877957,0.031,84493.0,84492.0,0.2371712]
[1742506878149,0.03136,84493.0,84492.0,0.2371712]
[1742506878351,0.03136,84493.0,84492.0,0.2374912]
[1742506879840,0.03136,84493.0,84492.0,0.2684912]
[1742506880151,0.00017759,84497.0,84494.0,0.1184084]
[1742506880346,0.00017759,84497.0,84496.0,0.4792056]
[1742506880553,9e-08,84497.0,84496.0,0.7602056]
[1742506880945,0.17685418,84509.0,84499.0,0.0592006]
[1742506881143,0.00876741,84536.0,84527.0,0.1183621]
[1742506881342,0.0311,84534.0,84527.0,0.5931621]
[1742506881757,0.3608,84552.0,84532.0,0.5917701]
[1742506882060,0.0311,84551.0,84550.0,0.1183299]
[1742506883255,0.0311,84551.0,84550.0,0.1498299]
[1742506883456,0.0638,84551.0,84550.0,0.1498299]
[1742506884352,0.0688,84551.0,84550.0,0.1498299]
[1742506884744,0.0638,84551.0,84550.0,0.1498299]
[1742506884945,0.0688,84551.0,84550.0,0.1498299]
[1742506885268,0.0748,84551.0,84550.0,0.1498299]
[1742506885948,0.0738,84551.0,84550.0,0.1498299]
[1742506887452,0.0738,84551.0,84550.0,0.1183299]
[1742506887653,0.1921285,84551.0,84550.0,0.1183299]
[1742506887853,0.0738,84551.0,84550.0,0.1183299]
[1742506888353,0.1921285,84551.0,84550.0,0.1183299]
[1742506888957,0.0738,84551.0,84550.0,0.1183299]
[1742506889759,0.1921285,84551.0,84550.0,0.1183299]
[1742506892648,0.1183677,84523.0,84522.0,0.28194888]
[1742506892844,0.1183677,84523.0,84490.0,0.0592064]
[1742506892845,0.47624,84523.0,84500.0,0.3608]
[1742506893051,0.1183986,84501.0,84500.0,0.01]
[1742506893448,0.118407,84495.0,84494.0,0.059204]
[1742506893652,0.1184098,84493.0,84492.0,0.49831892]
[1742506893857,0.1184098,84493.0,84492.0,0.49771892]
[1742506894254,0.13027339,84493.0,84492.0,0.49771892]
[1742506894445,0.28027339,84493.0,84492.0,0.49771892]
[1742506895356,0.28027339,84493.0,84492.0,0.49971892]
[1742506895554,0.28027339,84493.0,84492.0,0.50271892]
[1742506895756,0.64107339,84493.0,84492.0,0.50271892]
[1742506895958,0.64107339,84493.0,84492.0,0.00532]
[1742506896255,0.118421,84485.0,84484.0,0.00017746]
[1742506896454,0.234381,84485.0,84484.0,0.00017746]
[1742506897360,0.235381,84485.0,84484.0,0.00017746]
[1742506897560,0.596181,84485.0,84484.0,0.00017746]
[1742506898350,0.596181,84485.0,84484.0,0.11859986]
[1742506898652,0.595181,84485.0,84484.0,0.00017746]
[1742506899058,0.595181,84485.0,84484.0,0.15159986]
[1742506900147,0.479221,84485.0,84484.0,0.15159986]
[1742506900352,0.479221,84485.0,84484.0,0.18319986]
[1742506921962,0.429321,84485.0,84484.0,0.18319986]
[1742506922473,0.118421,84485.0,84484.0,0.18319986]
[1742506929277,0.118421,84485.0,84484.0,0.06477746]
[1742506929484,0.164421,84485.0,84484.0,0.06477746]
[1742506929684,0.164421,84485.0,84484.0,0.18319986]
[1742506932679,0.22199577,84485.0,84484.0,0.18319986]
[1742506936778,0.20609577,84485.0,84484.0,0.18319986]
[1742506936978,0.148521,84485.0,84484.0,0.18319986]
[1742506938375,0.0301,84485.0,84484.0,0.18319986]
[1742506938575,0.00096001,84506.0,84500.0,0.1184]
[1742506938788,0.1183922,84506.0,84500.0,0.1184]
[1742506938980,0.1183922,84506.0,84500.0,0.1813]
[1742506939186,4e-05,84507.0,84500.0,0.1813]
[1742506939689,0.3608,84517.0,84516.0,0.1183775]
[1742506940276,0.3608,84517.0,84516.0,0.2140775]
[1742506941286,0.31385529,84523.0,84522.0,0.1183691]
[1742506941287,0.28115529,84523.0,84522.0,0.1183691]
[1742506941591,0.15153449,84523.0,84522.0,0.1183691]
[1742506941984,0.15153449,84523.0,84522.0,0.1491691]
[1742506943391,0.15153449,84523.0,84522.0,0.1501691]
[1742506943782,0.15153449,84523.0,84522.0,0.1511691]
[1742506944086,0.15153449,84523.0,84522.0,0.1501691]
[1742506944393,0.00017746,84525.0,84524.0,0.1183663]
[1742506944685,0.00017746,84525.0,84524.0,0.5956463]
[1742506945884,0.00017746,84525.0,84524.0,0.6602463]
[1742506946489,0.00017746,84525.0,84524.0,0.6612463]
[1742506953997,0.00017746,84525.0,84524.0,0.6608063]
[1742506957900,0.00017746,84525.0,84524.0,0.5447663]
[1742506958104,0.18114236,84525.0,84524.0,0.001]
[1742506959296,0.18114236,84525.0,84517.0,0.4791752]
[1742506959297,0.1183747,84518.0,84517.0,0.4791752]
[1742506959495,0.1183747,84518.0,84517.0,0.3608]
[1742506960097,0.2130747,84518.0,84517.0,0.4791761]
[1742506960894,0.2130747,84518.0,84517.0,0.5113761]
[1742506962492,0.2130747,84518.0,84517.0,0.5123761]
[1742506963099,0.2130747,84518.0,84517.0,0.394]
[1742506963303,0.2130747,84518.0,84517.0,0.1515761]
[1742506965007,0.1819747,84518.0,84517.0,0.1515761]
[1742506965507,0.1819747,84518.0,84517.0,0.1830761]
[1742506968315,0.1183747,84518.0,84517.0,0.1830761]
[1742506969708,0.1514747,84518.0,84517.0,0.1830761]
[1742506974115,0.1183747,84518.0,84517.0,0.1830761]
[1742506978917,0.1184138,84519.0,84518.0,0.1183747]
[1742506979425,0.1184138,84519.0,84518.0,0.1820747]
[1742506979911,4e-05,84519.0,84518.0,0.2978747]
[1742506980111,4e-05,84519.0,84518.0,0.3105086]
[1742506980711,0.17686507,84522.0,84521.0,0.1183705]
[1742506981117,0.17686507,84522.0,84521.0,0.1807705]
[1742506981713,0.17686507,84522.0,84521.0,0.1817705]
[1742506984124,0.17686507,84524.0,84523.0,0.1183677]
[1742506984324,0.17686507,84524.0,84523.0,0.3276677]
[1742506987421,0.21112208,84528.0,84524.0,0.1183663]
[1742506987627,0.21112208,84528.0,84524.0,0.1823663]
[1742506988028,4e-05,84526.0,84524.0,0.1823663]
[1742506992831,0.17725532,84531.0,84524.0,0.1823663]
[1742506993036,4e-05,84526.0,84524.0,0.1823663]
[1742506994527,0.17725532,84534.0,84533.0,0.1183537]
[1742506994739,0.21112208,84541.0,84538.0,0.0591733]
[1742506994929,0.21112208,84541.0,84530.0,0.3608]
[1742506994930,0.2476111,84552.0,84551.0,0.1183285]
[1742506995541,0.2476111,84552.0,84551.0,0.1787285]
[1742506995733,0.2476111,84552.0,84551.0,0.2109285]
[1742506996434,0.2496111,84552.0,84551.0,0.2109285]
[1742506997032,0.002,84552.0,84551.0,0.2109285]
[1742506997438,0.005,84552.0,84551.0,0.2109285]
[1742506998230,0.0308,84554.0,84553.0,0.1183257]
[1742506998742,0.0308,84554.0,84553.0,0.1817257]
[1742506999937,0.0633,84554.0,84553.0,0.1817257]
[1742507000546,0.0633,84554.0,84553.0,0.1827257]
[1742507001943,0.0633,84554.0,84553.0,0.19140758]
[1742507007148,0.1816243,84554.0,84553.0,0.19140758]
[1742507008445,0.1816243,84554.0,84553.0,0.001]
[1742507010343,0.1183257,84553.0,84552.0,0.1183266]
[1742507010742,0.1183271,84552.0,84551.0,0.0591642]
[1742507011247,0.1809271,84552.0,84551.0,0.0591642]
[1742507012244,0.1809271,84552.0,84551.0,0.0601642]
[1742507014159,0.1809271,84552.0,84551.0,0.0591642]
[1742507014346,0.1809271,84552.0,84551.0,0.0601642]
[1742507014851,0.1809271,84552.0,84551.0,0.001]
[1742507018253,0.1809271,84552.0,84551.0,0.0317]
[1742507018553,0.1809271,84552.0,84551.0,0.1500285]
[1742507018744,0.1809271,84552.0,84551.0,0.0317]
[1742507021654,0.1809271,84552.0,84551.0,0.0645]
[1742507023660,0.1809271,84552.0,84551.0,0.1828285]
[1742507027660,0.1183271,84552.0,84551.0,0.0645]
[1742507028160,0.1508271,84552.0,84551.0,0.0645]
[1742507028768,0.1508271,84552.0,84551.0,0.1828285]
[1742507030659,0.1183271,84552.0,84551.0,0.1828285]
[1742507031646,0.13008772,84554.0,84553.0,0.1183257]
[1742507031862,0.3608,84557.0,84556.0,0.1183215]
[1742507032056,0.05933446,84560.0,84557.0,0.0591593]
[1742507032255,0.17765176,84560.0,84559.0,0.1183173]
[1742507032762,0.17765176,84560.0,84559.0,0.1818173]
[1742507033665,0.17865176,84560.0,84559.0,0.1818173]
[1742507034160,0.00317606,84560.0,84559.0,0.1818173]
[1742507034750,0.00117606,84560.0,84559.0,0.1818173]